Cogmind - Beta 10.2 @@@ ROGUE MODE // 2021.07.15 @ 22:35:07 Player: MiniManul Result: Destroyed by G-47 Trooper with Particle Gun Performance ------------- Evolutions (0) 0 Regions Visited (2) 400 Robots Destroyed (31) 155 Value Destroyed (663) 663 Prototype IDs (2) 40 Alien Tech Used (0) 0 Bonus (0) 0 TOTAL SCORE: 1258 Bonus ------- None Cogmind --------- Core Integrity 0/250 Matter 300/300 Energy 250/250 System Corruption 5% Temperature Cool (171) Movement Rolling (90) Ox1 Location -10/Mines Parts ------- > --- POWER (1) -------- Ion Engine > --- PROPULSION (2) --- Wheel Wheel > --- UTILITY (2) ------ High-capacity Storage Unit Targeting Computer > --- WEAPON (2) ------- (None) > --- INVENTORY (12) --- Heat Sink Medium Matter Pod (100) ECM Suite Light Armor Plating Peak State ------------ > --- POWER ------------ Ion Engine > --- PROPULSION ------- Aluminum Leg Aluminum Leg > --- UTILITY ---------- Signal Interpreter Seismic Analyzer > --- WEAPON ----------- Medium Laser Assault Rifle > --- INVENTORY -------- Light Ion Engine EM Pulse Gun Grenade Launcher [Rating: 7] Favorites ----------- Power Ion Engine Engine Ion Engine Propulsion Aluminum Leg Leg Aluminum Leg Wheel Wheel Flight Unit Flight Unit Utility Large Storage Unit Storage Large Storage Unit Processor Targeting Computer Weapon EM Pulse Gun Energy Gun EM Pulse Gun Ballistic Gun Assault Rifle Special Weapon Mining Laser Build | -11 -10 -10 ------- Run | Scr Mat Min Slots Evolved . | . . . Power . | . . . Propulsion . | . . . Utility . | . . . Weapon . | . . . Parts Attached 39 | 9 30 . Power 7 | 2 5 . Engine 7 | 2 5 . Core . | . . . Reactor . | . . . Propulsion 14 | 4 10 . Treads . | . . . Leg 7 | 2 5 . Wheel 5 | 2 3 . Hover . | . . . Flight 2 | . 2 . Utility 5 | 1 4 . Device . | . . . Storage 2 | . 2 . Processor 3 | 1 2 . Hackware . | . . . Protection . | . . . Artifact . | . . . Weapon 13 | 2 11 . Energy Gun 6 | 1 5 . Energy Cannon . | . . . Ballistic Gun 4 | 1 3 . Ballistic Cannon . | . . . Launcher . | . . . Special Weapon 3 | . 3 . Impact Weapon . | . . . Slashing Weapon . | . . . Piercing Weapon . | . . . Special Melee Weapon . | . . . Unidentified Prototypes . | . . . Parts Lost 6 | . 4 2 Power 1 | . 1 . Propulsion 2 | . 2 . Utility . | . . . Weapon 3 | . 1 2 Highest Loss Streak 3 | . 3 2 Average Slot Usage (%) 94 | . 94 85 Engine 13 | . 13 14 Leg 18 | . 19 . Wheel 5 | . 5 28 Flight 1 | . 1 . Storage 11 | . 11 14 Processor 15 | . 15 14 Energy Gun 16 | . 16 14 Ballistic Gun 6 | . 6 . Special Weapon 3 | . 3 . Naked Turns . | . . . Heaviest Build 40 | 9 40 . Greatest Support 20 | 20 20 . Greatest Overweight (x) 5 | . 5 . Average Overweight (x) . | . . . Largest Inventory Capacity 12 | 4 12 12 Average Capacity 8 | 4 9 12 Most Carried 7 | 3 7 4 Average Carried 2 | 1 2 4 Final Capacity 12 | 4 12 12 Final Carried 4 | 2 4 4 Class Distribution -------------------- 78% | Mutant 21% | Scavenger-Mutant Dominant Class ---------------- Mutant | -10/Materials Scavenger-Mutant | -10/Mines Resources | -11 -10 -10 ----------- Run | Scr Mat Min Matter Collected 976 | 291 685 . Remotely . | . . . Salvage Created 965 | 83 882 . Parts 67 | 7 60 . Haulers Intercepted . | . . . Recyclers Shooed 1 | . 1 . Parts Field Recycled . | . . . Retrieved Matter . | . . . Parts Self-Destructed . | . . . Prevented . | . . . Kills | -11 -10 -10 ------- Run | Scr Mat Min Combat Hostiles Destroyed 18 | 1 17 . Guns 16 | 1 15 . Cannons 1 | . 1 . AOE 1 | . 1 . Classes Destroyed 7 | 3 4 . Worker 4 | 1 3 . Builder 3 | . 3 . Tunneler 2 | 2 . . Recycler 1 | . 1 . Watcher 3 | . 3 . Swarmer 3 | . 3 . Grunt 15 | 1 14 . Best Kill Streak 7 | 4 7 . Combat Bots Only 4 | 1 4 . Max Kills in Single Turn 2 | 1 2 . Gunslinging . | . . . Exploded 1 | . 1 . Melee . | . . . Uniques/NPCs Destroyed . | . . . Combat | -11 -10 -10 -------- Run | Scr Mat Min Damage Taken 1244 | 12 1062 170 Core 259 | . 208 51 Absorbed by Shields . | . . . Core Remaining (%) 100 | 100 . . Volleys Fired 106 | 7 91 8 Largest 2 | 2 2 2 Hottest 140 | 70 140 80 Shots Fired 188 | 14 162 12 Gun 182 | 14 156 12 Cannon . | . . . Launcher . | . . . Special 6 | . 6 . Kinetic 88 | 7 81 . Thermal 69 | 7 54 8 Explosive . | . . . Electromagnetic 31 | . 27 4 Robot Hit Streak 11 | 6 11 5 Robot Miss Streak 6 | 2 6 1 Penetration Max . | . . . Secondary Targets 5 | . 5 . Max Gunslinging Chain 1 | . 1 . Shots Hit Robots 115 | 9 98 8 Core Hits 50 | 5 44 1 Critical Hits . | . . . Critical Kills . | . . . Critical Parts Destroyed . | . . . Melee Attacks . | . . . Impact . | . . . Slashing . | . . . Piercing . | . . . Sneak Attacks . | . . . Combat Hostiles . | . . . Follow-up Attacks . | . . . Damage Inflicted 1486 | 113 1269 104 Guns 1319 | 113 1102 104 Cannons . | . . . Explosions 51 | . 51 . Melee . | . . . Ramming 20 | . 20 . Kinetic 503 | 51 452 . Thermal 637 | 62 498 77 Explosive . | . . . Electromagnetic 326 | . 299 27 Impact . | . . . Slashing . | . . . Piercing . | . . . Highest Corruption 5 | . 5 5 Average Corruption 4 | . 4 5 Corruption Purged . | . . . Effects 30 | . 30 . Message Errors 1 | . 1 . Matter Fused 9 | . 9 . Heat Flow Errors 2 | . 2 . Energy Discharges 5 | . 5 . Data Loss (minor) 4 | . 4 . Data Loss (major) 2 | . 2 . Misfires 2 | . 2 . Targeting Errors 4 | . 4 . Weapon Failures 1 | . 1 . Overload Shots . | . . . Overflow Damage . | . . . Projectiles . | . . . Explosions . | . . . Melee . | . . . Knockbacks . | . . . Impact . | . . . Kinetic . | . . . Secondary . | . . . Self-Inflicted Damage 10 | . 10 . Shots . | . . . Rammed 1 | . 1 . Targets Rammed 1 | . 1 . Kicked . | . . . Crushed . | . . . Highest Temperature 633 | 54 633 162 Average Temperature 97 | 25 104 92 Received Heat Transfer 621 | 6 516 99 Effects 9 | . 9 . Shutdowns 1 | . 1 . Energy Bleed 2 | . 2 . Interference 1 | . 1 . Matter Decay 1 | . 1 . Short Circuit 1 | . 1 . Damage (major) 3 | . 3 . Siege Activations . | . . . Robots Corrupted . | . . . Combat Hostiles . | . . . Parts Fried . | . . . Impact Corruptions . | . . . Robots Melted . | . . . Combat Hostiles . | . . . Parts Melted 1 | 1 . . Heat Transferred 1661 | 185 1301 175 Parts Sabotaged . | . . . Parts Stolen . | . . . Parts Stripped . | . . . Power Chain Reactions 1 | . 1 . Missiles Intercepted . | . . . Alert | -11 -10 -10 ------- Run | Scr Mat Min Peak Influence 184 | 35 184 36 Initial 22 | . 22 21 Average 60 | 15 65 27 Maximum Alert Level . | . . . Low Security (%) 100 | 100 100 100 Level 1 . | . . . Level 2 . | . . . Level 3 . | . . . Level 4 . | . . . Level 5 . | . . . High Security . | . . . Max Security . | . . . Squads Dispatched 6 | . 6 . Investigation 3 | . 3 . Extermination . | . . . Reinforcement 3 | . 3 . Assault . | . . . Garrison . | . . . Intercept . | . . . Construction Impeded . | . . . Haulers Reinforced . | . . . Stealth | -11 -10 -10 --------- Run | Scr Mat Min Distress Signals 2 | . 2 . Communications Jammed . | . . . Distress Signals . | . . . Times Spotted 31 | 1 28 2 Peak Tracking Total 4 | 1 4 2 Tactical Retreats . | . . . Traps | -11 -10 -10 ------- Run | Scr Mat Min Traps Triggered 5 | . 5 . Indirectly . | . . . Trap Hack Attempts . | . . . Triggered . | . . . Disarmed . | . . . Reprogrammed . | . . . Reused . | . . . Traps Extracted . | . . . Installed . | . . . Triggered . | . . . Machines | -11 -10 -10 ---------- Run | Scr Mat Min Machines Disabled 1 | . . 1 Max in Single Turn 1 | . . 1 Machines Sabotaged . | . . . Garrisons Compromised . | . . . Overloaded Fab Kills . | . . . Fab Network Shutdowns . | . . . Hacking | -11 -10 -10 --------- Run | Scr Mat Min Machines Accessed 5 | . 5 . Terminals 4 | . 4 . Fabricators . | . . . Repair Stations . | . . . Recycling Units 1 | . 1 . Scanalyzers . | . . . Garrison Access . | . . . Total Hacks 21 | . 21 . Successful 15 | . 15 . Failed 6 | . 6 . Catastrophic 1 | . 1 . Database Lockouts . | . . . Manual . | . . . Terminals 18 | . 18 . Fabricators . | . . . Repair Stations . | . . . Recycling Units 3 | . 3 . Scanalyzers . | . . . Garrison Access . | . . . Terminal Hacks 12 | . 12 . Record 5 | . 5 . Prototype ID Bank 1 | . 1 . Emergency Access Points 1 | . 1 . Alert Level 2 | . 2 . Unreport Threat 1 | . 1 . Investigation Status 1 | . 1 . Zone Layout 1 | . 1 . Fabricator Hacks . | . . . Repair Station Hacks . | . . . Recycling Unit Hacks 3 | . 3 . Recycle Component 1 | . 1 . Process 1 | . 1 . Report Inventory 1 | . 1 . Scanalyzer . | . . . Garrison Access Hacks . | . . . Unauthorized Hacks . | . . . Terminals . | . . . Fabricators . | . . . Repair Stations . | . . . Recycling Units . | . . . Scanalyzers . | . . . Garrison Access . | . . . Data Cores Recovered . | . . . Used . | . . . Hacking Detections 2 | . 2 . Full Trace Events 2 | . 2 . Feedback Events . | . . . Feedback Blocked . | . . . Robot Schematics Acquired . | . . . Robots Built . | . . . Matter . | . . . Time . | . . . Total Robot Build Rating . | . . . Part Schematics Acquired . | . . . Parts Built . | . . . Matter . | . . . Time . | . . . Total Part Build Rating . | . . . Parts Repaired . | . . . Time . | . . . Parts Recycled 1 | . 1 . Recycled Matter 149 | . 149 . Retrieved Matter . | . . . Retrieved Components . | . . . Parts Scanalyzed . | . . . Part Schematics Acquired . | . . . Parts Damaged . | . . . Bothacking | -11 -10 -10 ------------ Run | Scr Mat Min Used RIF Installer . | . . . Robots Hacked . | . . . Non-combat . | . . . Combat . | . . . Robot Hacks Applied . | . . . Relay Couplers Released . | . . . Robots Rewired . | . . . Allies Hacked . | . . . Hacks Repelled . | . . . Allies | -11 -10 -10 -------- Run | Scr Mat Min Total Allies . | . . . Largest Group . | . . . Highest-Rated Group . | . . . Highest-Rated Ally . | . . . Total Orders . | . . . Ally Attacks . | . . . Total Damage . | . . . Kills . | . . . Allies Corrupted . | . . . Allies Melted . | . . . Intel | -11 -10 -10 ------- Run | Scr Mat Min Robot Analysis Total . | . . . Derelict Logs Recovered . | . . . Drone Launches . | . . . Drone Recoveries . | . . . Exploration | -11 -10 -10 ------------- Run | Scr Mat Min Turns Passed 2029 | 197 1812 20 Spaces Moved 1267 | 153 1114 . Core 46 | 36 10 . Treads . | . . . Legs 856 | 112 744 . Wheels 345 | 5 340 . Hover . | . . . Flight 20 | . 20 . Fastest Speed 50 | 50 90 . Average Speed 127 | 102 131 . Slowest Speed 440 | 120 440 . Overloaded Moves . | . . . Propulsion Burnouts . | . . . Robots Hopped . | . . . Cave-ins Triggered . | . . . Exploration Rate (%) 30 | 5 81 5 Regions Visited 2 Branch Regions 1 Pre-discovered Areas . | . . . Known Exits Taken . | . . . Unknown Exits Taken 2 | 1 1 . Scrap Searched . | . . . Spaces Dug . | . . . Terrain Destroyed 5 | . 5 . Melee . | . . . Projectile 2 | . 2 . AOE 3 | . 3 . Terrain Rammed . | . . . Walls Destroyed . | . . . Machines Disabled . | . . . Actions | -11 -10 -10 --------- Run | Scr Mat Min Total 1501 | 180 1313 8 Wait 7 | . 7 . Move 1265 | 152 1113 . Hop . | . . . Pick Up 47 | 10 37 . Fast Attach . | . . . Attach 32 | 8 24 . Detach 6 | . 6 . Swap 7 | 1 6 . Drop 30 | 2 28 . Fire 106 | 7 91 8 Melee . | . . . Ram 1 | . 1 . Kick . | . . . Crush . | . . . Escape Stasis . | . . . Rewire . | . . . Trap . | . . . Miscellaneous . | . . . Route ------- -11/Scrapyard -10/Materials (discovered 5 exits: [*Mat x3] / [*Min x2]) -10/Mines History --------- Turn | Location | Event 2 | -11/Scrapyard | Met Revision 17 95 | -11/Scrapyard | Discovered new exit (range 8) 198 | -11/Scrapyard | Entered Materials 305 | -10/Materials | Build established: Mutant 624 | -10/Materials | Discovered new exit (range 14) 896 | -10/Materials | Discovered new exit (range 12) 1083 | -10/Materials | Discovered new exit (range 12) 1095 | -10/Materials | Core integrity fell below 50% 1312 | -10/Materials | Discovered new exit (range 3) 1422 | -10/Materials | Core integrity fell below 20% 1454 | -10/Materials | Lost 3 parts (1p1n1w) 1720 | -10/Materials | Discovered new exit (range 7) 1978 | -10/Materials | Build established: Scavenger-Mutant 2010 | -10/Materials | Entered Mines 2011 | -10/Mines | Assembled infested the area 2017 | -10/Mines | Met a Derelict bent on vengeance 2030 | -10/Mines | Destroyed by G-47 Trooper with Particle Gun Last Messages --------------- Acquired 19 matter. Acquired Hcp. Storage Unit. Dropped Hcp. Storage Unit. Acquired Hcp. Storage Unit. Dropped Lrg. Storage Unit. Acquired 9 matter. Acquired 1 matter. K-01 Serf cleans the Terminal. Connecting with Terminal... K-01 Serf cleans the Terminal. Slammed into K-01 Serf. K-01 Serf destroyed. LOCATION=UNKNOWN GOAL=ESCAPE Something is scanning the area. ALERT: Infestation in the mines, dispatching Demolisher response squad. Core Extractor disabled. EM Pulse Gun destroyed. Sml. Laser destroyed. [Achievement: First Step to Greatness] Map ----- +----------------------------------------------------+ | ????????????????????????????????? | | ????????????????????????????????? | | ????????????????????????????????? | | ????????????????????????????????? | | ????????????????????????????????? | | ????????????????????????????????? | | ????????????????????????????????? | | ????????????????????????????????? | | ????????????????????????????????? | | ????????????????????????????????? | | ??????????????????????????#?????? | | ?????????????????????????# ?????? | | ????????????????????????# ?????? | | ???????????????????????? ?????? | | ???????????????????????? ?????? | | ???????????????????????? ?????? | | ???????????????????????? ?????? | | ???????????????????????? ?????? | | ???????????????????????? ?????? | | ???????????????????????? ?????? | | ????????????????????????# ?????? | | ????????????????????????# #?????? | | ??????????????????????### ######? | | ??????????????????????# #? | | ??????????????????????# #? | | ??????????????????????# @ #? | | ??????????????????????# #? | | ??????????????????????# #? | | ??????????????????????# "" #? | | ??????????????????????# gg""" #? | | ??????????????????????# """ #? | | ??????????????????????# #? | | ??????????????????????##########? | | ????????????????????????????????? | | ????????????????????????????????? | | ????????????????????????????????? | | ????????????????????????????????? | | ????????????????????????????????? | | | | | | | | | | | | | | | | | | | | | | | | | +----------------------------------------------------+ Best States ------------- Heat Dissipation 25 Energy Generation 10 Energy Capacity 250 Matter Stores 300 Matter Capacity 300 Sight Range 16 Terrain Scan Density 60 Evasion (%) 50 Targeting Accuracy 5 Item Schematics ----------------- None Robot Schematics ------------------ None Fabricated ------------ Nothing Alien Tech Used ----------------- None Achievements -------------- Crack Shot Everything Is Under Control First Step to Greatness One Hack Too Far Storm Trooper Uninvited Guest Challenges ------------ None Game ------ Seed AluminumScatterMapper Manual? 0 Play Time 00:34:22 Cumulative 1.1 hours Start 2021.07.15 @ 21:56:27 End 2021.07.15 @ 22:35:07 Sessions 1 Manual Loads 0 Difficulty Rogue Special Mode None Game No. 1 Rogue 1 Adventurer 0 Explorer 0 Win Type - Total 0 Types 0/0/0/0/0/0/0/0/0 Lore% 0 Gallery% 1 Achievement% 2 Wizard Run 0 Options --------- ASCII 0 Keyboard 0 Movement Arrows Keybinds 0 Fullscreen 2 Font 18/Terminus Map View 76x50 Tactical HUD 0 Map Filters NONE Filters NONE Steam 1 RUN: ba0bc626-2052-4c5d-91d8-88437e0fc6c6